fUSD/lending_fUSD_20260430
["ID","MTS","AMOUNT","RATE_DAILY","PERIOD"]
[421386076,1777549845000,-151.0,0.000312,7]
[421386074,1777549845000,-151.0,0.000312,7]
[421386075,1777549845000,-151.0,0.000312,7]
[421386073,1777549845000,-151.0,0.000312,7]
[421386077,1777549845000,-238.250202,0.000312,7]
[421386078,1777549845000,-151.0,0.000312,7]
[421386080,1777549845000,-570.39,0.00031618,2]
[421386079,1777549845000,-483.38,0.00031618,2]
[421386082,1777549845000,-638.83,0.00031618,2]
[421386028,1777549845000,-570.86,0.00030799,2]
[421386056,1777549845000,-478.34,0.00030799,2]
[421386055,1777549845000,-570.86,0.00030799,2]
[421386081,1777549845000,-638.43,0.00031618,2]
[421386057,1777549845000,-183.55,0.00030799,2]
[421386053,1777549845000,-570.86,0.00030799,2]
[421386030,1777549845000,-638.83,0.00030799,2]
[421386027,1777549845000,-183.55,0.00030799,2]
[421386035,1777549845000,-183.55,0.00030799,2]
[421386032,1777549845000,-568.61,0.00030799,2]
[421386033,1777549845000,-478.34,0.00030799,2]
[421386031,1777549845000,-478.34,0.00030799,2]
[421386037,1777549845000,-638.07,0.00030799,2]
[421386047,1777549845000,-570.86,0.00030799,2]
[421386038,1777549845000,-392.96,0.00030799,2]
[421386040,1777549845000,-570.86,0.00030799,2]
[421386042,1777549845000,-570.86,0.00030799,2]
[421386034,1777549845000,-568.61,0.00030799,2]
[421386044,1777549845000,-570.86,0.00030799,2]
[421386046,1777549845000,-183.55,0.00030799,2]
[421386052,1777549845000,-570.86,0.00030799,2]
[421386050,1777549845000,-392.96,0.00030799,2]
[421386051,1777549845000,-568.61,0.00030799,2]
[421386049,1777549845000,-570.86,0.00030799,2]
[421386048,1777549845000,-478.42,0.00030799,2]
[421386043,1777549845000,-638.83,0.00030799,2]
[421386039,1777549845000,-183.55,0.00030799,2]
[421386041,1777549845000,-183.55,0.00030799,2]
[421386036,1777549845000,-570.86,0.00030799,2]
[421386045,1777549845000,-638.83,0.00030799,2]
[421386054,1777549845000,-568.61,0.00030799,2]
[421386107,1777549846000,-392.96,0.00031619,2]
[421386117,1777549846000,-478.34,0.00031619,2]
[421386110,1777549846000,-183.55,0.00031619,2]
[421386109,1777549846000,-566.37,0.00031619,2]
[421386113,1777549846000,-485.18,0.00031619,2]
[421386112,1777549846000,-568.61,0.00031619,2]
[421386116,1777549846000,-183.49,0.00031619,2]
[421386115,1777549846000,-390.67,0.00031619,2]
[421386114,1777549846000,-392.96,0.00031619,2]
[421386119,1777549846000,-392.96,0.00031619,2]
[421386124,1777549846000,-638.83,0.00031621,2]
[421386120,1777549846000,-500.0,0.00031621,2]
[421386118,1777549846000,-568.61,0.00031619,2]
[421386122,1777549846000,-570.86,0.00031621,2]
[421386123,1777549846000,-478.34,0.00031621,2]
[421386126,1777549846000,-638.83,0.00031621,2]
[421386129,1777549846000,-478.34,0.00031621,2]
[421386125,1777549846000,-568.61,0.00031621,2]
[421386128,1777549846000,-568.61,0.00031621,2]
[421386131,1777549846000,-570.86,0.00031621,2]
[421386111,1777549846000,-638.83,0.00031619,2]
[421386121,1777549846000,-570.86,0.00031621,2]
[421386105,1777549846000,-392.96,0.00031619,2]
[421386092,1777549846000,-392.96,0.00031619,2]
[421386102,1777549846000,-183.55,0.00031619,2]
[421386127,1777549846000,-570.86,0.00031621,2]
[421386083,1777549846000,-183.55,0.00031618,2]
[421386084,1777549846000,-563.57,0.00031618,2]
[421386088,1777549846000,-568.61,0.00031619,2]
[421386086,1777549846000,-633.76,0.00031619,2]
[421386085,1777549846000,-568.61,0.00031619,2]
[421386087,1777549846000,-183.55,0.00031619,2]
[421386090,1777549846000,-570.86,0.00031619,2]
[421386100,1777549846000,-183.55,0.00031619,2]
[421386091,1777549846000,-478.34,0.00031619,2]
[421386108,1777549846000,-478.34,0.00031619,2]
[421386089,1777549846000,-568.61,0.00031619,2]
[421386093,1777549846000,-570.86,0.00031619,2]
[421386094,1777549846000,-570.86,0.00031619,2]
[421386099,1777549846000,-570.86,0.00031619,2]
[421386096,1777549846000,-478.34,0.00031619,2]
[421386097,1777549846000,-478.34,0.00031619,2]
[421386095,1777549846000,-568.7,0.00031619,2]
[421386098,1777549846000,-478.34,0.00031619,2]
[421386103,1777549846000,-392.96,0.00031619,2]
[421386104,1777549846000,-568.61,0.00031619,2]
[421386106,1777549846000,-183.55,0.00031619,2]
[421386101,1777549846000,-570.86,0.00031619,2]
[421386130,1777549846000,-570.86,0.00031621,2]
[421386132,1777549846000,-392.96,0.00031621,2]
[421386134,1777549846000,-478.34,0.00031621,2]
[421386159,1777549846000,-570.86,0.00031621,2]
[421386164,1777549846000,-568.61,0.00031621,2]
[421386161,1777549846000,-392.96,0.00031621,2]
[421386167,1777549846000,-638.83,0.00031621,2]
[421386165,1777549846000,-638.83,0.00031621,2]
[421386168,1777549846000,-570.86,0.00031621,2]
[421386166,1777549846000,-186.17,0.00031621,2]
[421386170,1777549846000,-183.55,0.00031621,2]
[421386177,1777549846000,-568.61,0.00031621,2]
[421386174,1777549846000,-638.83,0.00031621,2]
[421386171,1777549846000,-638.83,0.00031621,2]
[421386173,1777549846000,-568.61,0.00031621,2]
[421386176,1777549846000,-478.34,0.00031621,2]
[421386172,1777549846000,-570.86,0.00031621,2]
[421386175,1777549846000,-392.96,0.00031621,2]
[421386178,1777549846000,-478.34,0.00031621,2]
[421386180,1777549846000,-638.83,0.00031621,2]
[421386179,1777549846000,-568.61,0.00031621,2]
[421386181,1777549846000,-585.62,0.00031621,2]
[421386182,1777549846000,-570.86,0.00031621,2]
[421386133,1777549846000,-183.55,0.00031621,2]
[421386163,1777549846000,-570.86,0.00031621,2]
[421386162,1777549846000,-568.61,0.00031621,2]
[421386169,1777549846000,-638.83,0.00031621,2]
[421386157,1777549846000,-568.61,0.00031621,2]
[421386137,1777549846000,-638.83,0.00031621,2]
[421386160,1777549846000,-478.34,0.00031621,2]
[421386136,1777549846000,-392.96,0.00031621,2]
[421386135,1777549846000,-568.7,0.00031621,2]
[421386138,1777549846000,-392.96,0.00031621,2]
[421386143,1777549846000,-183.55,0.00031621,2]
[421386140,1777549846000,-638.83,0.00031621,2]
[421386142,1777549846000,-183.55,0.00031621,2]
[421386139,1777549846000,-570.86,0.00031621,2]
[421386144,1777549846000,-183.55,0.00031621,2]
[421386145,1777549846000,-240.41,0.00031621,2]
[421386141,1777549846000,-570.86,0.00031621,2]
[421386149,1777549846000,-478.34,0.00031621,2]
[421386148,1777549846000,-183.55,0.00031621,2]
[421386146,1777549846000,-183.55,0.00031621,2]
[421386153,1777549846000,-568.61,0.00031621,2]
[421386152,1777549846000,-183.55,0.00031621,2]
[421386147,1777549846000,-392.96,0.00031621,2]
[421386154,1777549846000,-392.96,0.00031621,2]
[421386151,1777549846000,-392.96,0.00031621,2]
[421386155,1777549846000,-183.55,0.00031621,2]
[421386150,1777549846000,-635.63,0.00031621,2]
[421386158,1777549846000,-568.61,0.00031621,2]
[421386223,1777549847000,-183.55,0.00031627,2]
[421386227,1777549847000,-568.61,0.00031627,2]
[421386237,1777549847000,-392.96,0.00031627,2]
[421386220,1777549847000,-392.96,0.00031627,2]
[421386235,1777549847000,-392.96,0.00031627,2]
[421386231,1777549847000,-570.86,0.00031627,2]
[421386218,1777549847000,-570.86,0.00031627,2]
[421386229,1777549847000,-183.55,0.00031627,2]
[421386239,1777549847000,-638.83,0.00031627,2]
[421386233,1777549847000,-183.55,0.00031627,2]
[421386225,1777549847000,-568.61,0.00031627,2]
[421386251,1777549847000,-388.4483504,0.00031762,60]
[421386243,1777549847000,-568.61,0.00031627,2]
[421386249,1777549847000,-204.806096,0.00031762,60]
[421386244,1777549847000,-570.35,0.00031627,2]
[421386245,1777549847000,-568.61,0.00031627,2]
[421386250,1777549847000,-214.7221495,0.00031762,60]
[421386241,1777549847000,-183.55,0.00031627,2]
[421386248,1777549847000,-160.563136,0.00031739,2]
[421386246,1777549847000,-570.86,0.00031627,2]
[421386247,1777549847000,-478.34,0.00031627,2]
[421386211,1777549847000,-570.86,0.00031621,2]
[421386242,1777549847000,-638.83,0.00031627,2]
[421386206,1777549847000,-638.83,0.00031621,2]
[421386184,1777549847000,-398.58,0.00031621,2]
[421386216,1777549847000,-570.86,0.00031627,2]
[421386183,1777549847000,-392.96,0.00031621,2]
[421386185,1777549847000,-570.86,0.00031621,2]
[421386186,1777549847000,-568.61,0.00031621,2]
[421386188,1777549847000,-392.96,0.00031621,2]
[421386252,1777549847000,-175.8357495,0.00031762,60]
[421386189,1777549847000,-390.17,0.00031621,2]
[421386191,1777549847000,-478.34,0.00031621,2]
[421386198,1777549847000,-478.34,0.00031621,2]
[421386190,1777549847000,-638.83,0.00031621,2]
[421386193,1777549847000,-638.83,0.00031621,2]
[421386192,1777549847000,-478.34,0.00031621,2]
[421386196,1777549847000,-183.55,0.00031621,2]
[421386194,1777549847000,-568.61,0.00031621,2]
[421386197,1777549847000,-570.86,0.00031621,2]
[421386200,1777549847000,-638.83,0.00031621,2]
[421386199,1777549847000,-638.83,0.00031621,2]
[421386195,1777549847000,-392.96,0.00031621,2]
[421386201,1777549847000,-392.98,0.00031621,2]
[421386203,1777549847000,-182.42,0.00031621,2]
[421386205,1777549847000,-568.7,0.00031621,2]
[421386209,1777549847000,-441.11,0.00031621,2]
[421386214,1777549847000,-638.83,0.00031621,2]
[421386202,1777549847000,-478.34,0.00031621,2]
[421386207,1777549847000,-183.58,0.00031621,2]
[421386255,1777549847000,-227.7564714,0.00031762,60]
[421386187,1777549847000,-638.83,0.00031621,2]
[421386254,1777549847000,-636.327219,0.00031762,60]
[421386282,1777549847000,-478.34,0.00032441,2]
[421386284,1777549847000,-183.55,0.00032441,2]
[421386285,1777549847000,-183.55,0.00032441,2]
[421386288,1777549847000,-183.55,0.00032441,2]
[421386286,1777549847000,-392.96,0.00032441,2]
[421386289,1777549847000,-570.86,0.00032441,2]
[421386287,1777549847000,-181.94,0.00032441,2]
[421386290,1777549847000,-478.34,0.00032441,2]
[421386292,1777549847000,-393.02,0.00032441,2]
[421386291,1777549847000,-392.96,0.00032441,2]
[421386294,1777549847000,-638.83,0.00032441,2]
[421386293,1777549847000,-568.61,0.00032441,2]
[421386297,1777549847000,-478.34,0.00032441,2]
[421386295,1777549847000,-570.95,0.00032441,2]
[421386296,1777549847000,-638.83,0.00032441,2]
[421386302,1777549847000,-570.86,0.00032441,2]
[421386299,1777549847000,-570.95,0.00032441,2]
[421386298,1777549847000,-638.83,0.00032441,2]
[421386300,1777549847000,-478.34,0.00032441,2]
[421386301,1777549847000,-638.83,0.00032441,2]
[421386304,1777549847000,-638.83,0.00032441,2]
[421386303,1777549847000,-647.97,0.00032441,2]
[421386305,1777549847000,-478.34,0.00032443,2]
[421386283,1777549847000,-183.55,0.00032441,2]
[421386274,1777549847000,-638.83,0.00032439,2]
[421386253,1777549847000,-207.6618654,0.00031762,60]
[421386280,1777549847000,-392.96,0.0003244,2]
[421386258,1777549847000,-238.24318564,0.00032,120]
[421386257,1777549847000,-3939.52,0.000319,2]
[421386256,1777549847000,-447.88158663,0.00031857,2]
[421386259,1777549847000,-161.37742922,0.00032,120]
[421386260,1777549847000,-304.74238444,0.00032,120]
[421386263,1777549847000,-260.32966134,0.00032,120]
[421386276,1777549847000,-638.83,0.00032439,2]
[421386262,1777549847000,-167.26897478,0.00032,120]
[421386266,1777549847000,-184.87838463,0.00032,120]
[421386267,1777549847000,-190.78984627,0.00032,120]
[421386270,1777549847000,-156.0,0.00032171,30]
[421386264,1777549847000,-888.23703335,0.00032,120]
[421386261,1777549847000,-163.53888513,0.00032,120]
[421386265,1777549847000,-200.59236077,0.00032,120]
[421386279,1777549847000,-478.34,0.0003244,2]
[421386271,1777549847000,-161.0,0.00032171,30]
[421386272,1777549847000,-186.0,0.00032171,30]
[421386273,1777549847000,-638.83,0.00032439,2]
[421386275,1777549847000,-638.83,0.00032439,2]
[421386277,1777549847000,-570.37,0.00032439,2]
[421386281,1777549847000,-4713.96507848,0.0003244,86]
[421386268,1777549847000,-162.3498137,0.00032,7]
[421386269,1777549847000,-748.28172148,0.00032099,2]
[421386278,1777549847000,-478.42,0.00032439,2]
[421386333,1777549848000,-568.61,0.00032443,2]
[421386334,1777549848000,-570.86,0.00032443,2]
[421386335,1777549848000,-576.83,0.00032443,2]
[421386337,1777549848000,-478.34,0.00032443,2]
[421386340,1777549848000,-183.58,0.00032443,2]
[421386345,1777549848000,-478.34,0.00032443,2]
[421386336,1777549848000,-567.1,0.00032443,2]
[421386346,1777549848000,-392.96,0.00032443,2]
[421386339,1777549848000,-478.42,0.00032443,2]
[421386338,1777549848000,-392.96,0.00032443,2]
[421386355,1777549848000,-393.02,0.00032443,2]
[421386343,1777549848000,-568.61,0.00032443,2]
[421386341,1777549848000,-638.83,0.00032443,2]
[421386342,1777549848000,-478.34,0.00032443,2]
[421386347,1777549848000,-183.55,0.00032443,2]
[421386349,1777549848000,-183.55,0.00032443,2]
[421386348,1777549848000,-570.86,0.00032443,2]
[421386356,1777549848000,-638.83,0.00032443,2]
[421386350,1777549848000,-392.96,0.00032443,2]
[421386351,1777549848000,-638.83,0.00032443,2]
[421386352,1777549848000,-478.34,0.00032443,2]
[421386332,1777549848000,-478.34,0.00032443,2]
[421386344,1777549848000,-568.61,0.00032443,2]
[421386331,1777549848000,-183.55,0.00032443,2]
[421386320,1777549848000,-478.34,0.00032443,2]
[421386329,1777549848000,-392.96,0.00032443,2]
[421386353,1777549848000,-638.83,0.00032443,2]
[421386307,1777549848000,-638.83,0.00032443,2]
[421386306,1777549848000,-392.96,0.00032443,2]
[421386312,1777549848000,-570.86,0.00032443,2]
[421386313,1777549848000,-478.34,0.00032443,2]
[421386309,1777549848000,-392.96,0.00032443,2]
[421386308,1777549848000,-568.61,0.00032443,2]
[421386310,1777549848000,-570.86,0.00032443,2]
[421386311,1777549848000,-568.61,0.00032443,2]
[421386315,1777549848000,-392.96,0.00032443,2]
[421386314,1777549848000,-183.55,0.00032443,2]
[421386316,1777549848000,-478.34,0.00032443,2]
[421386318,1777549848000,-392.96,0.00032443,2]
[421386321,1777549848000,-568.61,0.00032443,2]
[421386317,1777549848000,-574.41,0.00032443,2]
[421386319,1777549848000,-638.83,0.00032443,2]
[421386323,1777549848000,-638.83,0.00032443,2]
[421386324,1777549848000,-392.96,0.00032443,2]
[421386322,1777549848000,-568.61,0.00032443,2]
[421386325,1777549848000,-478.34,0.00032443,2]
[421386326,1777549848000,-638.83,0.00032443,2]
[421386327,1777549848000,-183.55,0.00032443,2]
[421386328,1777549848000,-568.61,0.00032443,2]
[421386330,1777549848000,-570.86,0.00032443,2]
[421386354,1777549848000,-478.34,0.00032443,2]
[421386404,1777549848000,-568.61,0.00032443,2]
[421386357,1777549848000,-478.34,0.00032443,2]
[421386383,1777549848000,-568.61,0.00032443,2]
[421386387,1777549848000,-478.34,0.00032443,2]
[421386390,1777549848000,-564.97,0.00032443,2]
[421386392,1777549848000,-568.61,0.00032443,2]
[421386388,1777549848000,-570.86,0.00032443,2]
[421386391,1777549848000,-183.55,0.00032443,2]
[421386393,1777549848000,-183.55,0.00032443,2]
[421386389,1777549848000,-391.43,0.00032443,2]
[421386397,1777549848000,-478.34,0.00032443,2]
[421386394,1777549848000,-570.86,0.00032443,2]
[421386395,1777549848000,-568.61,0.00032443,2]
[421386398,1777549848000,-183.47,0.00032443,2]
[421386400,1777549848000,-638.83,0.00032443,2]
[421386399,1777549848000,-570.86,0.00032443,2]
[421386401,1777549848000,-565.25,0.00032443,2]
[421386403,1777549848000,-570.86,0.00032443,2]
[421386402,1777549848000,-392.96,0.00032443,2]
[421386409,1777549848000,-392.96,0.00032448,2]
[421386408,1777549848000,-392.96,0.00032448,2]
[421386405,1777549848000,-568.61,0.00032443,2]
[421386407,1777549848000,-151.0,0.00032448,7]
[421386406,1777549848000,-570.86,0.00032443,2]
[421386358,1777549848000,-195.94,0.00032443,2]
[421386386,1777549848000,-183.55,0.00032443,2]
[421386380,1777549848000,-568.61,0.00032443,2]
[421386396,1777549848000,-568.61,0.00032443,2]
[421386384,1777549848000,-185.05,0.00032443,2]
[421386379,1777549848000,-570.86,0.00032443,2]
[421386361,1777549848000,-183.55,0.00032443,2]
[421386359,1777549848000,-392.96,0.00032443,2]
[421386364,1777549848000,-570.86,0.00032443,2]
[421386365,1777549848000,-183.55,0.00032443,2]
[421386362,1777549848000,-568.61,0.00032443,2]
[421386360,1777549848000,-182.64,0.00032443,2]
[421386363,1777549848000,-638.83,0.00032443,2]
[421386368,1777549848000,-478.34,0.00032443,2]
[421386374,1777549848000,-183.55,0.00032443,2]
[421386373,1777549848000,-478.34,0.00032443,2]
[421386376,1777549848000,-478.34,0.00032443,2]
[421386366,1777549848000,-561.19,0.00032443,2]
[421386382,1777549848000,-568.61,0.00032443,2]
[421386367,1777549848000,-392.96,0.00032443,2]
[421386371,1777549848000,-478.34,0.00032443,2]
[421386369,1777549848000,-568.61,0.00032443,2]
[421386372,1777549848000,-568.61,0.00032443,2]
[421386377,1777549848000,-183.55,0.00032443,2]
[421386375,1777549848000,-638.58,0.00032443,2]
[421386378,1777549848000,-183.55,0.00032443,2]
[421386381,1777549848000,-478.34,0.00032443,2]
[421386385,1777549848000,-474.91,0.00032443,2]
[421386370,1777549848000,-568.61,0.00032443,2]
[421386450,1777549849000,-478.34,0.00032449,2]
[421386445,1777549849000,-570.86,0.00032449,2]
[421386446,1777549849000,-570.86,0.00032449,2]
[421386444,1777549849000,-570.86,0.00032449,2]
[421386442,1777549849000,-638.83,0.00032449,2]
[421386438,1777549849000,-570.86,0.00032448,2]
[421386439,1777549849000,-180.99,0.00032448,2]
[421386440,1777549849000,-478.34,0.00032449,2]
[421386441,1777549849000,-638.83,0.00032449,2]
[421386452,1777549849000,-150.0,0.00032727,2]
[421386443,1777549849000,-568.61,0.00032449,2]
[421386449,1777549849000,-392.96,0.00032449,2]
[421386462,1777549849000,-151.0,0.00032877,7]
[421386447,1777549849000,-183.55,0.00032449,2]
[421386451,1777549849000,-150.0,0.00032562,2]
[421386454,1777549849000,-150.0,0.00032727,2]
[421386453,1777549849000,-150.0,0.00032727,2]
[421386455,1777549849000,-291.0,0.00032727,2]
[421386457,1777549849000,-150.0,0.00032779,2]
[421386458,1777549849000,-150.0,0.00032779,2]
[421386456,1777549849000,-150.0,0.00032779,2]
[421386459,1777549849000,-150.0,0.00032779,2]
[421386463,1777549849000,-151.0,0.00032877,7]
[421386434,1777549849000,-392.96,0.00032448,2]
[421386448,1777549849000,-392.96,0.00032449,2]
[421386436,1777549849000,-570.86,0.00032448,2]
[421386410,1777549849000,-478.34,0.00032448,2]
[421386437,1777549849000,-478.34,0.00032448,2]
[421386460,1777549849000,-176.0,0.00032779,2]
[421386413,1777549849000,-478.34,0.00032448,2]
[421386412,1777549849000,-638.83,0.00032448,2]
[421386411,1777549849000,-570.86,0.00032448,2]
[421386415,1777549849000,-392.96,0.00032448,2]
[421386414,1777549849000,-183.55,0.00032448,2]
[421386416,1777549849000,-636.14,0.00032448,2]
[421386418,1777549849000,-570.86,0.00032448,2]
[421386417,1777549849000,-473.73,0.00032448,2]
[421386419,1777549849000,-478.34,0.00032448,2]
[421386420,1777549849000,-392.96,0.00032448,2]
[421386435,1777549849000,-392.96,0.00032448,2]
[421386421,1777549849000,-638.83,0.00032448,2]
[421386424,1777549849000,-476.49,0.00032448,2]
[421386430,1777549849000,-473.02,0.00032448,2]
[421386423,1777549849000,-392.96,0.00032448,2]
[421386428,1777549849000,-392.96,0.00032448,2]
[421386422,1777549849000,-568.61,0.00032448,2]
[421386429,1777549849000,-392.96,0.00032448,2]
[421386425,1777549849000,-638.83,0.00032448,2]
[421386426,1777549849000,-392.96,0.00032448,2]
[421386432,1777549849000,-183.55,0.00032448,2]
[421386431,1777549849000,-638.83,0.00032448,2]
[421386433,1777549849000,-570.86,0.00032448,2]
[421386427,1777549849000,-478.34,0.00032448,2]
[421386461,1777549849000,-184.62042551,0.00032877,30]
[421386464,1777549849000,-151.0,0.00032877,7]
[421386519,1777549849000,-478.34,0.00033265,2]
[421386493,1777549849000,-183.55,0.00033262,2]
[421386495,1777549849000,-565.82,0.00033265,2]
[421386497,1777549849000,-570.86,0.00033265,2]
[421386507,1777549849000,-392.96,0.00033265,2]
[421386500,1777549849000,-570.86,0.00033265,2]
[421386501,1777549849000,-392.96,0.00033265,2]
[421386499,1777549849000,-568.61,0.00033265,2]
[421386498,1777549849000,-638.83,0.00033265,2]
[421386502,1777549849000,-478.34,0.00033265,2]
[421386508,1777549849000,-638.83,0.00033265,2]
[421386506,1777549849000,-392.96,0.00033265,2]
[421386504,1777549849000,-478.34,0.00033265,2]
[421386505,1777549849000,-478.34,0.00033265,2]
[421386509,1777549849000,-638.83,0.00033265,2]
[421386511,1777549849000,-568.61,0.00033265,2]
[421386510,1777549849000,-579.16,0.00033265,2]
[421386514,1777549849000,-570.86,0.00033265,2]
[421386513,1777549849000,-183.55,0.00033265,2]
[421386512,1777549849000,-478.34,0.00033265,2]
[421386516,1777549849000,-183.36,0.00033265,2]
[421386515,1777549849000,-638.83,0.00033265,2]
[421386517,1777549849000,-638.83,0.00033265,2]
[421386465,1777549849000,-151.0,0.00032877,7]
[421386518,1777549849000,-635.97,0.00033265,2]
[421386520,1777549849000,-638.83,0.00033265,2]
[421386491,1777549849000,-567.79,0.00033262,2]
[421386492,1777549849000,-638.83,0.00033262,2]
[421386503,1777549849000,-181.32,0.00033265,2]
[421386496,1777549849000,-183.55,0.00033265,2]
[421386466,1777549849000,-151.0,0.00032877,7]
[421386494,1777549849000,-392.96,0.00033265,2]
[421386467,1777549849000,-151.0,0.00032877,7]
[421386471,1777549849000,-152.0,0.00032907,2]
[421386472,1777549849000,-161.37742922,0.00033,120]
[421386473,1777549849000,-163.53888513,0.00033,120]
[421386474,1777549849000,-167.26897478,0.00033,120]
[421386469,1777549849000,-151.0,0.00032877,7]
[421386470,1777549849000,-193.347215,0.00032877,7]
[421386484,1777549849000,-392.96,0.00033262,2]
[421386476,1777549849000,-200.59236077,0.00033,120]
[421386482,1777549849000,-183.55,0.00033261,2]
[421386478,1777549849000,-190.78984627,0.00033,120]
[421386468,1777549849000,-151.0,0.00032877,7]
[421386477,1777549849000,-184.87838463,0.00033,120]
[421386475,1777549849000,-888.23703335,0.00033,120]
[421386487,1777549849000,-638.83,0.00033262,2]
[421386490,1777549849000,-183.55,0.00033262,2]
[421386485,1777549849000,-568.61,0.00033262,2]
[421386488,1777549849000,-392.96,0.00033262,2]
[421386489,1777549849000,-564.53,0.00033262,2]
[421386483,1777549849000,-568.61,0.00033262,2]
[421386481,1777549849000,-186.0,0.00033171,30]
[421386479,1777549849000,-569.531743,0.00033,14]
[421386480,1777549849000,-156.0,0.00033171,30]
[421386486,1777549849000,-568.61,0.00033262,2]
[421386559,1777549850000,-638.83,0.00033271,2]
[421386550,1777549850000,-638.83,0.0003327,2]
[421386552,1777549850000,-183.55,0.0003327,2]
[421386549,1777549850000,-570.86,0.0003327,2]
[421386551,1777549850000,-568.33,0.0003327,2]
[421386554,1777549850000,-568.61,0.0003327,2]
[421386556,1777549850000,-183.55,0.0003327,2]
[421386548,1777549850000,-570.86,0.0003327,2]
[421386553,1777549850000,-568.61,0.0003327,2]
[421386555,1777549850000,-392.96,0.0003327,2]
[421386566,1777549850000,-183.55,0.00033271,2]
[421386561,1777549850000,-478.34,0.00033271,2]
[421386564,1777549850000,-570.86,0.00033271,2]
[421386565,1777549850000,-638.83,0.00033271,2]
[421386557,1777549850000,-183.55,0.0003327,2]
[421386558,1777549850000,-478.34,0.0003327,2]
[421386562,1777549850000,-183.19,0.00033271,2]
[421386563,1777549850000,-568.61,0.00033271,2]
[421386567,1777549850000,-568.61,0.00033271,2]
[421386569,1777549850000,-392.96,0.00033271,2]
[421386579,1777549850000,-200.59236077,0.000339,120]
[421386568,1777549850000,-568.61,0.00033271,2]
[421386547,1777549850000,-570.86,0.0003327,2]
[421386560,1777549850000,-478.34,0.00033271,2]
[421386546,1777549850000,-568.61,0.0003327,2]
[421386571,1777549850000,-500.0,0.00033499,2]
[421386536,1777549850000,-183.55,0.00033265,2]
[421386522,1777549850000,-568.61,0.00033265,2]
[421386525,1777549850000,-638.83,0.00033265,2]
[421386521,1777549850000,-392.96,0.00033265,2]
[421386532,1777549850000,-183.55,0.00033265,2]
[421386524,1777549850000,-478.34,0.00033265,2]
[421386523,1777549850000,-478.34,0.00033265,2]
[421386526,1777549850000,-183.55,0.00033265,2]
[421386529,1777549850000,-392.96,0.00033265,2]
[421386530,1777549850000,-568.61,0.00033265,2]
[421386528,1777549850000,-638.83,0.00033265,2]
[421386531,1777549850000,-568.31,0.00033265,2]
[421386527,1777549850000,-570.86,0.00033265,2]
[421386534,1777549850000,-392.96,0.00033265,2]
[421386544,1777549850000,-392.96,0.0003327,2]
[421386533,1777549850000,-183.55,0.00033265,2]